Cogmind - Beta 17 @@@ ROGUE MODE // 2026.07.11 @ 13:33:50 Player: Cracklepappy Result: Destroyed by G-50 Soldier with Heavy Laser Performance ------------- Evolutions (0) 0 Regions Visited (1) 200 Robots Destroyed (30) 150 Value Destroyed (577) 577 Prototype IDs (3) 60 Alien Tech Used (0) 0 Bonus (6993) 6993 TOTAL SCORE: 7980 Bonus ------- High Alert Combat Kills 43 Follower Combat Kills 50 Prayed to X0-1V1 5000 Major X0-1V1 Interference 1900 Cogmind --------- Core Integrity 0/250 Matter 30/300 Energy 89/100 System Corruption 0% Temperature Cool (74) Movement Core (50) Location -10/Materials Parts ------- > --- POWER (1) -------- (None) > --- PROPULSION (2) --- (None) > --- UTILITY (2) ------ Weight Redist. System > --- WEAPON (2) ------- Grenade Launcher > --- INVENTORY (5) ---- Small Storage Unit Seismic Detector Peak State ------------ > --- POWER ------------ Light Ion Engine > --- PROPULSION ------- Flight Unit Flight Unit > --- UTILITY ---------- Weight Redist. System X0-1V1's Piety Tracker > --- WEAPON ----------- EM Pulse Gun Assault Rifle > --- INVENTORY -------- Light Treads Light Treads Flight Unit Small Storage Unit Grenade Launcher [Rating: 20] Favorites ----------- Power Light Ion Engine Engine Light Ion Engine Propulsion Light Treads Treads Light Treads Flight Unit Flight Unit Utility Weight Redist. System Device Weight Redist. System Processor Signal Interpreter Weapon EM Pulse Gun Energy Gun EM Pulse Gun Ballistic Gun Assault Rifle Launcher Grenade Launcher Build | -11 -10 ------- Run | Yrd Mat Slots Evolved . | . . Power . | . . Propulsion . | . . Utility . | . . Weapon . | . . Parts Attached 19 | 5 14 Power 3 | . 3 Engine 3 | . 3 Core . | . . Reactor . | . . Propulsion 5 | 2 3 Treads 2 | 2 . Leg . | . . Wheel . | . . Hover . | . . Flight 3 | . 3 Utility 4 | 1 3 Device 3 | 1 2 Storage . | . . Processor 1 | . 1 Hackware . | . . Protection . | . . Artifact . | . . Weapon 7 | 2 5 Energy Gun 3 | 2 1 Energy Cannon . | . . Ballistic Gun 1 | . 1 Ballistic Cannon . | . . Launcher 3 | . 3 Special Weapon . | . . Impact Weapon . | . . Slashing Weapon . | . . Piercing Weapon . | . . Special Melee Weapon . | . . Unidentified Prototypes 1 | . 1 Parts Lost 11 | . 11 Power 2 | . 2 Propulsion 4 | . 4 Utility 1 | . 1 Weapon 4 | . 4 Highest Loss Streak 6 | . 6 To Critical Strikes . | . . Average Backups 4 | 2 4 Power . | . . Propulsion 1 | . 1 Utility 1 | . 1 Weapon 1 | 1 1 Tool/Special . | . . Unused Backups 4 | . 4 Power . | . . Propulsion . | . . Utility 2 | . 2 Weapon 2 | . 2 Tool/Special . | . . Average Slot Usage (%) 88 | . 88 Engine 10 | . 10 Treads 14 | . 14 Flight 10 | . 10 Device 25 | . 25 Processor 1 | . 1 Energy Gun 13 | . 13 Ballistic Gun 8 | . 8 Launcher 2 | . 2 Peak Build Rating 20 | 5 20 Average Rating 10 | 4 12 On Entrance 2 | . 5 Avg Prop Armor Cover (%) 25 | 29 24 Naked Turns . | . . Heaviest Build 9 | 3 9 Greatest Support 20 | 20 14 Greatest Overweight (x) 2 | . 2 Average Overweight (x) . | . . Largest Inventory Capacity 5 | 5 5 Average Capacity 5 | 5 5 Most Carried 5 | 5 5 Average Carried 4 | 2 4 Final Capacity 5 | 5 5 Final Carried 5 | 5 2 Class Distribution -------------------- 100% | Mutant Dominant Class ---------------- Mutant | -10/Materials Resources | -11 -10 ----------- Run | Yrd Mat Matter Collected 550 | 250 300 Remotely . | . . Salvage Created 648 | 134 514 Parts 56 | 10 46 Haulers Intercepted 1 | . 1 Recyclers Shooed 3 | . 3 Parts Field Recycled . | . . Retrieved Matter . | . . Parts Self-Destructed . | . . Prevented . | . . Parts Restored . | . . Kills | -11 -10 ------- Run | Yrd Mat Combat Hostiles Destroyed 18 | . 18 Guns 5 | . 5 AOE 13 | . 13 Classes Destroyed 10 | 3 7 Worker 4 | 1 3 Builder 1 | . 1 Tunneler 2 | 2 . Hauler 1 | . 1 Recycler 1 | 1 . Operator 1 | . 1 Watcher 2 | . 2 Swarmer 7 | . 7 Grunt 10 | . 10 Sentry 1 | . 1 Best Kill Streak 9 | 3 9 Combat Bots Only 6 | . 6 Max Kills in Single Turn 3 | 1 3 Gunslinging . | . . Exploded 2 | . 2 Melee . | . . Uniques/NPCs Destroyed . | . . Combat | -11 -10 -------- Run | Yrd Mat Hostile Shots Fired 124 | . 124 Missed 46 | . 46 Hits 78 | . 78 Projectile 78 | . 78 Critical Strikes 1 | . 1 Damage Taken 939 | . 939 Core 264 | . 264 Absorbed by Shields . | . . Core Remaining (%) 100 | 100 . Volleys Fired 70 | 19 51 Largest 2 | 2 2 Hottest 80 | 80 60 Shots Fired 105 | 38 67 Gun 89 | 38 51 Cannon . | . . Launcher 16 | . 16 Special . | . . Kinetic 35 | . 35 Thermal 38 | 38 . Explosive 16 | . 16 Electromagnetic 16 | . 16 Robot Hit Streak 8 | 5 8 Robot Miss Streak 4 | 3 4 Penetration Max . | . . Secondary Targets . | . . Shots Hit Robots 60 | 20 40 Core Hits 50 | 5 45 Critical Kills . | . . Critical Parts Destroyed . | . . Critical Strikes . | . . Melee Attacks . | . . Impact . | . . Slashing . | . . Piercing . | . . Sneak Attacks . | . . Combat Hostiles . | . . Follow-up Attacks . | . . Damage Inflicted 1916 | 242 1674 Guns 679 | 242 437 Cannons . | . . Explosions 1237 | . 1237 Melee . | . . Ramming . | . . Kinetic 289 | . 289 Thermal 304 | 242 62 Explosive 1175 | . 1175 Electromagnetic 148 | . 148 Impact . | . . Slashing . | . . Piercing . | . . Highest Corruption . | . . Average Corruption . | . . Corruption Purged . | . . Corruption Blocked . | . . Overload Shots . | . . Overflow Damage 16 | . 16 Projectiles . | . . Explosions 16 | . 16 Melee . | . . Knockbacks . | . . Impact . | . . Kinetic . | . . Secondary . | . . Self-Inflicted Damage 79 | . 79 Shots 5 | . 5 Rammed . | . . Targets Rammed . | . . Kicked . | . . Crushed . | . . Highest Temperature 284 | 12 284 Average Temperature 44 | 4 74 Received Heat Transfer 315 | . 315 Siege Activations . | . . Martial Activations . | . . Shielding Activations . | . . Robots Disrupted . | . . Combat Hostiles . | . . Robots Corrupted . | . . Combat Hostiles . | . . Parts Fried . | . . Impact Corruptions . | . . Robots Melted . | . . Combat Hostiles . | . . Parts Melted . | . . Heat Transferred 650 | 550 100 Parts Sabotaged . | . . Parts Stolen . | . . Parts Stripped . | . . Power Chain Reactions 1 | . 1 Alert | -11 -10 ------- Run | Yrd Mat Maximum Alert Level 2 | . 2 Low Security (%) 77 | 100 71 Level 1 7 | . 10 Level 2 14 | . 18 Level 3 . | . . Level 4 . | . . Level 5 . | . . High Security . | . . Max Security . | . . Peak Influence 556 | 10 556 Initial . | . . Average 138 | 1 173 Influence Increases 904 | 20 884 Destroy 0b10 Robot/C 400 | . 400 Destroy 0b10 Robot/NC 60 | 20 40 Destroy Leader 46 | . 46 Allied During Kill 4 | . 4 Successful Hack 37 | . 37 Select Force Hacks 60 | . 60 Disable Machine 45 | . 45 Destroy Structure 57 | . 57 Partial Spotted 15 | . 15 Lose Combat Pursuer 180 | . 180 Influence Decreases 362 | 20 342 Time Decay 242 | 20 222 Lost Part 110 | . 110 Lost Ally 10 | . 10 Squads Dispatched 5 | . 5 Investigation 3 | . 3 Extermination . | . . Reinforcement 2 | . 2 Assault . | . . Garrison . | . . Intercept . | . . Searches Triggered . | . . Construction Impeded . | . . Haulers Reinforced . | . . Active Scanning Responses . | . . Cargo Convoy Interrupts . | . . Stealth | -11 -10 --------- Run | Yrd Mat Distress Signals . | . . Communications Jammed . | . . Distress Signals . | . . Times Spotted 51 | . 51 Peak Tracking Total 11 | . 11 Tactical Retreats 5 | . 5 Traps | -11 -10 ------- Run | Yrd Mat Traps Triggered . | . . Indirectly . | . . Trap Hack Attempts . | . . Triggered . | . . Disarmed . | . . Reprogrammed . | . . Reused . | . . Traps Extracted . | . . Installed . | . . Triggered . | . . Machines | -11 -10 ---------- Run | Yrd Mat Machines Disabled 3 | . 3 Max in Single Turn 2 | . 2 Machines Repaired . | . . Machines Dismantled . | . . Machines Sabotaged . | . . Overloaded Fab Kills . | . . Hacking | -11 -10 --------- Run | Yrd Mat Machines Accessed 7 | . 7 Terminals 5 | . 5 Fabricators . | . . Repair Stations . | . . Recycling Units 2 | . 2 Scanalyzers . | . . Garrison Access . | . . Total Hacks 21 | . 21 Successful 13 | . 13 Failed 8 | . 8 Catastrophic . | . . Database Lockouts . | . . Manual 14 | . 14 Terminals 17 | . 17 Fabricators . | . . Repair Stations . | . . Recycling Units 4 | . 4 Scanalyzers . | . . Garrison Access . | . . Terminal Hacks 3 | . 3 Prototype ID Bank 1 | . 1 Alert Level 1 | . 1 Locate Traps 1 | . 1 Fabricator Hacks . | . . Repair Station Hacks . | . . Recycling Unit Hacks 1 | . 1 Retrieve Components 1 | . 1 Scanalyzer . | . . Garrison Access Hacks . | . . Unauthorized Hacks 9 | . 9 Terminals 7 | . 7 Assimilate 1 | . 1 Operators 1 | . 1 Skim 5 | . 5 Fabricators . | . . Repair Stations . | . . Recycling Units 2 | . 2 Tunnel 2 | . 2 Scanalyzers . | . . Garrison Access . | . . Data Cores Recovered . | . . Used . | . . Hacking Detections 5 | . 5 Full Trace Events 1 | . 1 Feedback Events . | . . Feedback Blocked . | . . Robot Schematics Acquired . | . . Robots Built . | . . Authchips . | . . Time . | . . Total Robot Build Rating . | . . Part Schematics Acquired . | . . Parts Built . | . . Authchips . | . . Time . | . . Total Part Build Rating . | . . Part Studies Acquired . | . . Parts Repaired . | . . Time . | . . Parts Recycled . | . . Recycled Matter . | . . Retrieved Matter . | . . Retrieved Components . | . . Parts Scanalyzed . | . . Part Schematics Acquired . | . . Parts Damaged . | . . Bothacking | -11 -10 ------------ Run | Yrd Mat Used RIF Installer . | . . Robots Hacked . | . . Non-combat . | . . Combat . | . . Robot Hacks Applied . | . . Relay Couplers Released . | . . Fabnet Peak Effective % . | . . Robots Rewired . | . . Allies Hacked . | . . Hacks Repelled . | . . Allies | -11 -10 -------- Run | Yrd Mat Total Allies 3 | . 3 Largest Group 2 | . 2 Highest-Rated Group 24 | . 24 Highest-Rated Ally 16 | . 16 Total Orders . | . . Ally Attacks 6 | . 6 Total Damage 62 | . 62 Kills 2 | . 2 Allies Corrupted . | . . Allies Melted . | . . X0-1V1 Amusement Gains 87 | . 87 Good Acts 3 | . 3 Bad Acts 17 | . 17 Intel | -11 -10 ------- Run | Yrd Mat Active Infowar (turns) 314 | 46 268 Seismic 314 | 46 268 Robot Analysis Total . | . . Derelict Logs Recovered . | . . Drone Launches . | . . Drone Recoveries . | . . Exploration | -11 -10 ------------- Run | Yrd Mat Turns Passed 628 | 128 500 Spaces Moved 723 | 111 612 Core 385 | 109 276 Treads 2 | 2 . Legs . | . . Wheels . | . . Hover . | . . Flight 336 | . 336 Fastest Speed 37 | 50 37 Average Speed 45 | 51 43 Slowest Speed 160 | 160 150 Overloaded Moves . | . . Propulsion Burnouts . | . . Robots Hopped 9 | . 9 Potential Cave-ins . | . . Cave-ins Triggered . | . . Exploration Rate (%) 38 | 3 73 Regions Visited 1 Branch Regions . Pre-discovered Areas 2 | . 2 Known Exits Taken . | . . Unknown Exits Taken 1 | 1 . Scrap Searched . | . . Spaces Dug . | . . Terrain Destroyed 66 | . 66 Melee . | . . Projectile . | . . AOE 66 | . 66 Terrain Rammed . | . . Walls Destroyed . | . . Machines Disabled . | . . Actions | -11 -10 --------- Run | Yrd Mat Total 908 | 140 768 Wait 74 | 1 73 Move 706 | 110 596 Hop 7 | . 7 Pick Up 14 | 5 9 Fast Attach 12 | 5 7 Attach 8 | . 8 Detach 1 | . 1 Swap 6 | . 6 Drop 9 | . 9 Fire 70 | 19 51 Melee . | . . Ram 1 | . 1 Kick . | . . Crush . | . . Escape Stasis . | . . Rewire . | . . Trap . | . . Miscellaneous . | . . Route ------- -11/Scrapyard -10/Materials (discovered 2 exits: [*Mat] / [*Min]) History --------- Turn | Location | Event 15 | -11/Scrapyard | Discovered new exit (range 16) 129 | -11/Scrapyard | Entered Materials 318 | -10/Materials | Build established: Mutant 366 | -10/Materials | Discovered new exit (range 16) 397 | -10/Materials | Prayed at D.C.S.S. Altar Unit 425 | -10/Materials | Discovered new exit (range 13) 440 | -10/Materials | X0-1V1 turns hostiles against one another 505 | -10/Materials | X0-1V1 sent hostile G-34 Mercenary (x3) 571 | -10/Materials | X0-1V1 upgraded hostiles (x3) 575 | -10/Materials | Core integrity fell below 50% 594 | -10/Materials | X0-1V1 sent hostile S-10 Pest (x4) 604 | -10/Materials | Lost 6 parts (1p3n2w) 624 | -10/Materials | Core integrity fell below 20% 629 | -10/Materials | Destroyed by G-50 Soldier with Heavy Laser Last Messages --------------- 00595_ S-10 Pest destroyed. 00606_ Assault Rifle destroyed. 00606_ X0-1V1 is amused. 00612_ Ion Engine destroyed. 00615_ X0-1V1: "Your inner air conditioner seems to have fallen into disrepair." (-20 heat dissipation) 00617_ Acquired Grenade Launcher. 00618_ X0-1V1's Piety Tracker destroyed. 00618_ X0-1V1 is mildly amused. 00619_ S-10 Pest destroyed. 00619_ Lgt. Treads destroyed. 00619_ Critical hit (Burn: +37). 00620_ X0-1V1 is amused. 00621_ S-10 Pest destroyed. 00625_ Heat dissipation returns to normal. 00625_ G-47 Trooper destroyed. 00625_ G-34 Mercenary destroyed. 00626_ Grenade Launcher destroyed. 00627_ Acquired Grenade Launcher. 00629_ X0-1V1 cackles wildly! Map ----- +----------------------------------------------------+ | | | | | | | | | | | ?????????????????????????????????????????????????? | | ?????????????????????????????????????????????????? | | ?????????????????????????????????????????????????? | | ?????????????????????????????????????????????????? | | ?????????????????????????????????????????????????? | | ####???###########???###########?????????????????? | | #???# #???# ??????????????????? | | ## #???# """ #???# """ #?????????????????? | | ?# #???# """ ##### """ #?????????????????? | | ?# #???# """ # !%# """ #?????????????????? | | ?# #??## "" # ![# """ #?????????????????? | | ## #??# "Y # # """ #?????????????????? | | ## #?## = " !! " "T" #?????????????????? | | "# ####= %= ! g g #?????????????????? | | # #T ####### = # #+######?????????????????? | | # % #?????# %g #??????????????????? | | # #????## #??????????????????? | | # #????# #??????????????????? | | ## ##?????# #??????????????????? | | ## #???????# [ % ]] #??????????????????? | | #???????# * ]@] #??????????????????? | | #???????# ]] #??????????????????? | | #???????# # #??????????????????? | | "" "" ######### # #??????????????????? | | "" """ ## # ###########?????????????????? | | "" """ ## #^ # #?????????????????? | | "" "" ## + / #??????????######## | | " """ ## " " # # #??????????# | | ## "R" # # #??????????# | | ! ## """ #?#######+#??????????# | | % "" ##### ####????# #?########## | | Y" ##### ##???# #?# # """" | | "" #?### ### * """ # o"""" | | % ##### # %= "" # """" | | # % "[# | | ######+####### " / = !####+### | | #???! ????### # * ### | | #? #????# # +### # ""=+* ! | | # """ #????# # ## #### "|### | | # """"" #????#### """ ## #??#! #?# ## | | # """"" #???????# """ ## #??############ #? | | # """"" #???????# """ ## #???# # #? | | # ??""" #???????# ## #???# # #? | | #?????? #???????# """ ## #???# + #? | | #???????###???????# """ ## #???# """" # #? | +----------------------------------------------------+ Best States ------------- Heat Dissipation 25 Energy Generation 10 Energy Capacity 250 Matter Stores 300 Matter Capacity 300 Sight Range 16 Terrain Scan Density 10 Additional Mass Support 6 Evasion (%) 62 Recoil Reduction 2 Item Schematics ----------------- None Robot Schematics ------------------ None Fabricated ------------ Nothing Repaired ---------- Nothing Studied --------- None Alien Tech Used ----------------- None Achievements -------------- None Challenges ------------ None Game ------ Seed MiningShiftWyrmplate Manual? 0 Play Time 00:15:59 Cumulative 1529.0 hours Start 2026.07.11 @ 13:22:57 End 2026.07.11 @ 13:33:50 Sessions 1 Manual Loads 0 Difficulty Rogue Special Mode None Game No. 676 Rogue 676 Adventurer 0 Explorer 0 Win Type - Total 32 Types 15/7/3/0/1/1/2/2/0/1 Lore% 93 Gallery% 87 Achievement% 76 Wizard Run 0 Options --------- Layout 0 ASCII 0 Keyboard 0 Movement Numpad Keybinds 0 Fullscreen 2 Font 24/Smallcaps Map View 76x50 Zoom Use 0% Tactical HUD 1 Map Filters NONE Filters NONE Steam 1 RUN: c667c916-184c-4c45-ba9e-d075bcf20f7f